bitfinex-derivatives/quotes_BTCF0:USTF0_20251207
["timestamp","ask_amount","ask_price","bid_price","bid_amount"]
[1765123136804,0.3608,89530.0,89529.0,0.6412227]
[1765123137896,0.3608,89530.0,89509.0,0.23010829]
[1765123137897,0.63188,89503.0,89502.0,0.02941829]
[1765123138103,0.32617935,89503.0,89501.0,0.0111721]
[1765123138298,0.0111721,89501.0,89493.0,0.0111731]
[1765123138603,0.0111721,89501.0,89493.0,0.011173]
[1765123138805,0.0111721,89501.0,89496.0,0.0111727]
[1765123139202,0.0111721,89501.0,89490.0,0.20069]
[1765123139403,7.935e-05,89503.0,89483.0,0.02941829]
[1765123139603,0.0111732,89492.0,89485.0,0.011174]
[1765123140008,0.0111736,89489.0,89485.0,0.011174]
[1765123140313,0.3608,89486.0,89481.0,0.0111745]
[1765123140606,0.3608,89486.0,89485.0,0.64111]
[1765123141012,0.36090309,89486.0,89485.0,0.64111]
[1765123142709,0.36090309,89486.0,89485.0,0.64311]
[1765123142916,0.00010309,89486.0,89485.0,0.64311]
[1765123144203,0.07979157,89510.0,89485.0,0.64311]
[1765123144204,0.3608,89516.0,89515.0,0.6522804]
[1765123144402,0.3608,89526.0,89505.0,0.1962]
[1765123144403,0.3608,89526.0,89525.0,0.64111]
[1765123144603,0.0111699,89519.0,89510.0,0.0111709]
[1765123144798,0.3608,89515.0,89513.0,0.0111706]
[1765123145208,0.3608,89526.0,89513.0,0.0111706]
[1765123145209,0.00012686,89514.0,89513.0,0.6522806]
[1765123145401,0.00012686,89514.0,89513.0,1.0130806]
[1765123145604,0.00016756,89523.0,89522.0,0.6522795]
[1765123146705,0.00010425,89523.0,89522.0,0.6522795]
[1765123146913,0.3608,89547.0,89546.0,0.6522765]
[1765123147807,0.00016756,89555.0,89538.0,0.00016756]
[1765123148418,0.3608,89547.0,89543.0,0.0111668]
[1765123148806,0.3658,89547.0,89546.0,0.001]
[1765123149402,0.3658,89547.0,89546.0,0.32818]
[1765123149607,0.3658,89547.0,89546.0,0.64111]
[1765123150300,0.3608,89547.0,89546.0,0.64211]
[1765123150510,0.3658,89547.0,89546.0,0.64211]
[1765123151228,0.00016756,89555.0,89554.0,0.64111]
[1765123151521,0.3608,89561.0,89560.0,0.6522748]
[1765123152013,0.3608,89568.0,89567.0,0.6267639]
[1765123153221,0.66807,89568.0,89566.0,0.011164]
[1765123153413,0.3608,89568.0,89567.0,0.60099]
[1765123153617,0.3608,89568.0,89567.0,0.60199]
[1765123155011,0.3608,89568.0,89567.0,0.60099]
[1765123155918,0.3608,89568.0,89567.0,0.60199]
[1765123156510,0.3608,89568.0,89567.0,0.31357]
[1765123156812,0.3608,89568.0,89567.0,0.31457]
[1765123157005,0.3608,89568.0,89567.0,0.60299]
[1765123158213,0.3608,89568.0,89567.0,0.60199]
[1765123161322,0.00016756,89576.0,89575.0,0.60099]
[1765123161511,0.00016756,89576.0,89575.0,0.6121529]
[1765123162525,0.3608,89581.0,89580.0,0.8070923]
[1765123162725,0.3608,89590.0,89589.0,0.31257]
[1765123163428,0.3608,89590.0,89580.0,0.19494]
[1765123163429,0.3608,89626.0,89625.0,0.79593]
[1765123163724,0.0111547,89641.0,89626.0,0.0111565]
[1765123164029,0.00016736,89634.0,89630.0,0.0111559]
[1765123164533,0.00016736,89634.0,89625.0,0.19494]
[1765123164727,0.0111557,89633.0,89625.0,0.19494]
[1765123164919,0.00016736,89634.0,89625.0,0.19494]
[1765123165222,0.00016736,89634.0,89626.0,0.0111565]
[1765123165839,0.0111557,89633.0,89621.0,0.0111571]
[1765123166033,0.00016736,89634.0,89621.0,0.0111571]
[1765123166229,0.00016736,89634.0,89617.0,0.00016736]
[1765123166230,0.59549,89618.0,89617.0,0.00016736]
[1765123166625,0.4,89618.0,89594.0,0.0111605]
[1765123166825,0.4,89618.0,89593.0,0.3608]
[1765123166826,0.07979157,89620.0,89609.0,0.31257]
[1765123167034,0.3608,89634.0,89620.0,0.0111573]
[1765123167035,0.07979157,89630.0,89620.0,0.0111573]
[1765123167231,0.3608,89625.0,89619.0,0.3608]
[1765123167436,0.3608,89625.0,89619.0,0.3719574]
[1765123167738,0.30727,89620.0,89619.0,0.3608]
[1765123168128,0.3608,89625.0,89620.0,0.0111573]
[1765123168332,0.59549,89620.0,89619.0,0.3608]
[1765123168545,0.30727,89614.0,89613.0,0.00016736]
[1765123168835,0.59549,89614.0,89613.0,0.00016736]
[1765123171347,0.59549,89614.0,89600.0,0.0111597]
[1765123171348,0.30727,89594.0,89589.0,0.0111611]
[1765123171639,0.30727,89590.0,89589.0,0.0111611]
[1765123172047,0.3608,89598.0,89593.0,0.0111606]
[1765123173238,0.30727,89594.0,89593.0,0.0111606]
[1765123173438,0.59549,89594.0,89593.0,0.0111606]
[1765123173839,0.3608,89598.0,89593.0,0.0111606]
[1765123174243,0.3608,89598.0,89589.0,0.002]
[1765123174244,0.59549,89590.0,89589.0,0.002]
[1765123174443,0.3608,89598.0,89593.0,0.001]
[1765123174649,0.3608,89598.0,89594.0,0.0111605]
[1765123175641,0.3608,89598.0,89597.0,0.60099]
[1765123176939,0.00016736,89604.0,89598.0,0.01116]
[1765123177143,0.00016736,89604.0,89603.0,0.6121494]
[1765123178645,0.3608,89625.0,89624.0,0.6121468]
[1765123179151,0.95629,89625.0,89624.0,0.0111568]
[1765123179356,0.3608,89632.0,89630.0,0.011156]
[1765123180044,0.30727,89631.0,89630.0,0.011156]
[1765123180240,0.30727,89631.0,89625.0,0.2060966]
[1765123180649,0.59549,89631.0,89630.0,0.001]
[1765123181357,0.3719558,89632.0,89622.0,0.00016736]
[1765123181358,0.59549,89623.0,89622.0,0.00016736]
[1765123181555,0.3608,89632.0,89623.0,0.0111569]
[1765123182058,0.3608,89632.0,89631.0,0.58637]
[1765123182252,0.27953,89632.0,89627.0,0.0111563]
[1765123182857,0.27953,89632.0,89630.0,0.001]
[1765123183152,0.00016736,89640.0,89631.0,0.58637]
[1765123183356,0.00016736,89640.0,89635.0,0.0111553]
[1765123183357,0.57946,89636.0,89635.0,0.0111553]
[1765123183958,0.27953,89625.0,89624.0,0.0111568]
[1765123184143,0.57946,89623.0,89622.0,0.00016736]
[1765123184352,0.94026,89623.0,89622.0,0.00016736]
[1765123186759,0.94026,89623.0,89608.0,0.3608]
[1765123186760,0.57946,89609.0,89608.0,0.3608]
[1765123187155,0.3608,89615.0,89608.0,0.3719587]
[1765123187549,0.3608,89615.0,89612.0,0.0111582]
[1765123188053,0.3608,89615.0,89612.0,0.5975282]
[1765123188258,0.57946,89613.0,89612.0,0.0111582]
[1765123188661,0.3608,89615.0,89608.0,0.3608]
[1765123188662,0.57946,89609.0,89608.0,0.3608]
[1765123190255,0.07995893,89622.0,89608.0,0.65064]
[1765123190459,0.27953,89619.0,89618.0,0.3009975]
[1765123190755,0.57946,89619.0,89618.0,0.0111575]
[1765123191350,0.57946,89619.0,89618.0,0.3009975]
[1765123191566,0.00016736,89622.0,89621.0,0.58637]
[1765123193262,1.02005157,89650.0,89649.0,0.0111537]
[1765123193450,0.94026,89650.0,89649.0,0.0111537]
[1765123193655,0.64033,89650.0,89649.0,0.5975237]
[1765123193855,0.3608,89650.0,89649.0,0.5975237]
[1765123194054,0.94026,89650.0,89649.0,0.0111537]
[1765123194859,0.57946,89642.0,89641.0,0.01132206]
[1765123195766,1.0312,89642.0,89641.0,0.00016736]
[1765123195955,0.0111553,89637.0,89620.0,0.3719572]
[1765123196155,0.57946,89621.0,89620.0,0.3719572]
[1765123196368,0.57946,89621.0,89620.0,0.3608]
[1765123196852,0.57946,89611.0,89605.0,0.0111591]
[1765123197059,0.27953,89606.0,89604.0,0.3719592]
[1765123197266,0.57946,89612.0,89611.0,0.0111583]
[1765123197458,0.57946,89612.0,89604.0,0.3608]
[1765123197657,0.57946,89606.0,89605.0,0.0111591]
[1765123197858,0.3608,89613.0,89605.0,0.3009991]
[1765123198070,0.94026,89613.0,89612.0,0.0111583]
[1765123198274,0.57946,89605.0,89604.0,0.3608]
[1765123198560,0.57946,89605.0,89599.0,0.59769726]
[1765123198561,0.3608,89605.0,89599.0,0.59769726]
[1765123199176,0.00016736,89611.0,89605.0,0.0111591]
[1765123199762,0.57946,89605.0,89604.0,0.001]
[1765123199964,0.27953,89605.0,89604.0,0.001]
[1765123200175,0.57946,89605.0,89604.0,0.001]
[1765123200474,0.57946,89605.0,89599.0,0.00016736]
[1765123201154,0.57946,89600.0,89599.0,0.00016736]
[1765123201560,0.64033,89603.0,89602.0,0.28984]
[1765123201759,0.57946,89600.0,89583.0,0.3608]
[1765123202167,0.57946,89600.0,89585.0,0.0111615]
[1765123202370,0.57946,89600.0,89591.0,0.0111608]
[1765123202664,0.3608,89603.0,89599.0,0.28984]
[1765123202860,0.3608,89603.0,89601.0,0.0111596]
[1765123203062,0.57946,89602.0,89601.0,0.0111596]
[1765123203369,0.00016736,89611.0,89516.0,0.18207]
[1765123203370,0.57946,89571.0,89516.0,0.18207]
[1765123204372,0.5906235,89571.0,89530.0,0.0111684]
[1765123204671,0.28556,89585.0,89551.0,0.58637]
[1765123204672,0.00016747,89552.0,89551.0,0.58637]
[1765123204966,0.28556,89585.0,89552.0,0.1932357]
[1765123205158,0.3608,89592.0,89570.0,0.94717]
[1765123205362,0.3608,89592.0,89580.0,0.3608]
[1765123205562,0.64033,89592.0,89580.0,0.3608]
[1765123205759,0.3608,89601.0,89590.0,0.3608]
[1765123205970,0.3608,89601.0,89580.0,0.3608]
[1765123205971,0.57946,89591.0,89587.0,0.00016747]
[1765123206169,0.3608,89601.0,89587.0,0.00016747]
[1765123206372,0.3608,89601.0,89600.0,0.28984]
[1765123206667,0.94026,89601.0,89588.0,0.3608]
[1765123206864,0.0111598,89600.0,89587.0,0.00016747]
[1765123207466,0.3608,89601.0,89587.0,0.00016747]
[1765123207769,0.3608,89591.0,89587.0,0.00016747]
[1765123208168,0.57946,89588.0,89587.0,0.00016747]
[1765123208358,0.57946,89570.0,89560.0,0.3608]
[1765123208565,0.57946,89561.0,89546.0,0.3608]
[1765123208758,0.57946,89561.0,89536.0,0.54287]
[1765123208759,0.3608,89563.0,89560.0,0.28984]
[1765123208962,0.55017,89561.0,89550.0,0.18207]
[1765123209163,0.53948,89550.0,89536.0,0.3608]
[1765123209473,0.00016747,89552.0,89520.0,0.18207]
[1765123209668,0.53948,89547.0,89546.0,0.006]
[1765123209866,0.26884,89547.0,89546.0,0.006]
[1765123210266,0.00016747,89552.0,89546.0,0.006]
[1765123210869,0.36096747,89552.0,89546.0,0.006]
[1765123211175,0.36096747,89552.0,89543.0,0.3608]
[1765123211880,0.00016747,89552.0,89543.0,0.3608]
[1765123212369,0.3608,89550.0,89543.0,0.3608]
[1765123212876,0.00016747,89552.0,89543.0,0.3618]
[1765123213270,0.00016747,89552.0,89544.0,0.0111667]
[1765123213668,0.00016747,89552.0,89543.0,0.3618]
[1765123213867,0.3608,89551.0,89543.0,0.3618]
[1765123214075,0.3608,89551.0,89550.0,0.26514]
[1765123214265,0.3608,89551.0,89543.0,0.3608]
[1765123214464,0.3608,89551.0,89543.0,0.3618]
[1765123214665,0.52627,89544.0,89543.0,0.001]
[1765123214861,0.88707,89544.0,89543.0,0.001]
[1765123215164,0.0111677,89537.0,89520.0,0.18207]
[1765123215373,0.3608,89533.0,89520.0,0.18207]
[1765123215875,0.0111669,89543.0,89528.0,0.3608]
[1765123216275,0.3608,89544.0,89534.0,0.011168]
[1765123216572,0.00016747,89552.0,89543.0,0.26031]
[1765123216777,0.00016747,89552.0,89544.0,0.0111667]
[1765123217262,0.00016747,89552.0,89543.0,0.001]
[1765123217467,0.00016747,89552.0,89544.0,0.0111667]
[1765123217668,0.00016747,89552.0,89543.0,0.001]
[1765123218064,0.00016747,89552.0,89544.0,0.001]
[1765123218677,0.00016747,89552.0,89546.0,0.3608]
[1765123219071,0.00016747,89552.0,89543.0,0.001]
[1765123219470,0.01133327,89552.0,89543.0,0.001]
[1765123219669,0.00016747,89552.0,89551.0,0.51764]
[1765123220172,0.52643747,89552.0,89544.0,0.0111667]
[1765123220378,0.26003,89544.0,89540.0,0.3608]
[1765123220580,0.25854115,89544.0,89540.0,0.3608]
[1765123220780,0.3608,89551.0,89526.0,0.00027925]
[1765123220781,0.5374389,89527.0,89526.0,0.00027925]
[1765123221170,0.52627,89527.0,89526.0,0.00027925]
[1765123221973,0.3608,89531.0,89530.0,0.26031]
[1765123222478,0.52627,89527.0,89526.0,0.00027925]
[1765123223172,0.3608,89531.0,89526.0,0.00027925]
[1765123223575,0.3608,89531.0,89530.0,0.51764]
[1765123225684,0.3608,89542.0,89531.0,0.0111683]
[1765123225882,0.02650919,89541.0,89536.0,0.0111677]
[1765123226083,0.3608,89542.0,89536.0,0.0111677]
[1765123226286,0.3608,89542.0,89526.0,0.00027925]
[1765123226287,0.02652671,89541.0,89526.0,0.00027925]
[1765123226477,0.02652671,89540.0,89526.0,0.00027925]
[1765123226672,0.02652671,89539.0,89535.0,0.0111678]
[1765123226985,0.3608,89542.0,89541.0,0.51764]
[1765123227175,0.00016747,89552.0,89551.0,0.5288059]
[1765123227483,0.00016747,89552.0,89551.0,0.51764]
[1765123227680,0.00016747,89552.0,89551.0,0.87844]
[1765123228775,0.52643747,89552.0,89551.0,0.3618]
[1765123228975,0.52643747,89552.0,89551.0,0.001]
[1765123229485,0.55301033,89552.0,89551.0,0.001]
[1765123229783,0.28677033,89552.0,89551.0,0.001]
[1765123230175,0.02674033,89552.0,89551.0,0.51864]
[1765123230369,0.00016747,89552.0,89551.0,0.51864]
[1765123230781,0.52643747,89552.0,89551.0,0.001]
[1765123230974,0.26003,89548.0,89547.0,0.0111663]
[1765123231385,0.00016747,89552.0,89547.0,0.2714763]
[1765123231784,0.00016747,89552.0,89551.0,0.001]
[1765123232281,0.02677636,89552.0,89551.0,0.26131]
[1765123232982,0.02677636,89552.0,89551.0,0.51864]
[1765123233287,0.02677636,89552.0,89551.0,0.51764]
[1765123236882,0.52627,89548.0,89547.0,0.0111663]
[1765123237091,0.26003,89546.0,89545.0,0.26031]
[1765123237388,0.05992886,89552.0,89551.0,0.0111659]
[1765123237686,0.02684309,89552.0,89544.0,0.15271]
[1765123237889,0.08674433,89551.0,89549.0,0.011166]
[1765123238076,0.08674433,89551.0,89550.0,0.51764]
[1765123238384,0.02667562,89551.0,89550.0,0.51764]
[1765123238585,0.06011588,89551.0,89550.0,0.51764]
[1765123238790,0.00016747,89552.0,89551.0,0.5288059]
[1765123239089,0.02673068,89552.0,89551.0,0.5288059]
[1765123239388,0.02256368,89552.0,89551.0,0.5288059]
[1765123239578,0.02256368,89552.0,89546.0,0.3608]
[1765123239579,0.06011588,89566.0,89565.0,0.51764]
[1765123239784,0.06011588,89568.0,89567.0,0.5288039]
[1765123239977,0.3608,89574.0,89569.0,0.51764]
[1765123239978,0.06011588,89570.0,89569.0,0.51764]
[1765123240181,0.3608,89574.0,89559.0,0.3608]
[1765123240182,0.06011588,89571.0,89570.0,0.6815135]
[1765123240383,0.06011588,89574.0,89573.0,0.51764]
[1765123240588,0.62083,89574.0,89573.0,0.51764]
[1765123241386,0.52627,89571.0,89570.0,0.001]
[1765123241884,0.52627,89571.0,89562.0,0.00016747]
[1765123241885,0.47024,89563.0,89562.0,0.00016747]
[1765123242191,0.47024,89537.0,89527.0,0.3608]
[1765123242388,0.22945,89535.0,89534.0,0.0111679]
[1765123242593,0.22945,89535.0,89527.0,0.3608]
[1765123242594,0.22945,89535.0,89528.0,0.0111687]
[1765123243081,0.22945,89535.0,89532.0,0.0111682]
[1765123243393,0.00016747,89540.0,89535.0,0.0111679]
[1765123244183,0.06025741,89540.0,89535.0,0.1719279]
[1765123244384,0.00016747,89540.0,89535.0,0.1719279]
[1765123244792,0.00116747,89540.0,89535.0,0.1719279]
[1765123245494,0.00016747,89540.0,89535.0,0.1719279]
[1765123245694,0.00016747,89540.0,89539.0,0.46966]
[1765123247587,0.00016747,89540.0,89539.0,0.4808274]
[1765123247789,0.00016747,89540.0,89527.0,0.3608]
[1765123247790,0.47024,89536.0,89527.0,0.3608]
[1765123248090,0.3608,89533.0,89516.0,0.15271]
[1765123248287,0.3608,89533.0,89520.0,0.3608]
[1765123248983,0.3608,89533.0,89529.0,0.0111685]
[1765123249185,0.22945,89530.0,89529.0,0.0111685]
[1765123249386,0.3608,89533.0,89520.0,0.3608]
[1765123249387,0.59025,89533.0,89532.0,0.23667]
[1765123249894,0.59025,89533.0,89529.0,0.0111685]
[1765123249895,0.47024,89530.0,89529.0,0.0111685]
[1765123250191,0.47024,89538.0,89537.0,0.0111676]
[1765123250489,0.47024,89538.0,89532.0,0.0111681]
[1765123250687,0.47024,89529.0,89528.0,0.0111687]
[1765123250891,0.47024,89527.0,89523.0,0.0111692]
[1765123251391,0.47024,89524.0,89523.0,0.0111692]
[1765123251595,0.49576254,89524.0,89523.0,0.0111692]
[1765123251782,0.47024,89521.0,89520.0,0.3719697]
[1765123251987,0.02552254,89521.0,89520.0,0.8416297]
[1765123252188,0.47024,89525.0,89524.0,0.0111692]
[1765123252397,0.22945,89516.0,89515.0,0.0111703]
[1765123252583,0.49576182,89516.0,89515.0,0.0111703]
[1765123253692,0.49576182,89516.0,89502.0,0.52156]
[1765123253693,0.50693212,89516.0,89506.0,0.0111714]
[1765123253889,0.47024,89510.0,89509.0,0.011171]
[1765123254098,0.02552182,89510.0,89509.0,0.480831]
[1765123254398,0.22945,89515.0,89514.0,0.0111705]
[1765123254599,0.49592412,89515.0,89514.0,0.0111705]
[1765123254799,0.02568412,89515.0,89514.0,0.8416305]
[1765123254997,0.02568412,89515.0,89514.0,0.4808305]
[1765123255889,0.25513412,89515.0,89514.0,0.4808305]
[1765123256093,0.02568412,89515.0,89514.0,0.4818305]
[1765123257501,0.25513412,89515.0,89514.0,0.4818305]
[1765123257697,0.25513412,89515.0,89514.0,0.2488405]
[1765123257698,0.49592412,89515.0,89514.0,0.2488405]
[1765123258200,0.49592412,89515.0,89514.0,0.8426305]
[1765123258201,0.02568412,89515.0,89514.0,0.8426305]
[1765123258401,0.25513412,89515.0,89514.0,0.8426305]
[1765123259601,0.46176412,89515.0,89514.0,0.6096405]
[1765123259991,0.02568412,89515.0,89514.0,0.8290805]
[1765123260387,0.00016757,89520.0,89519.0,0.44917]
[1765123260991,0.0111655,89555.0,89519.0,0.44917]
[1765123260992,0.06008994,89548.0,89537.0,0.44917]
[1765123261299,0.41326,89538.0,89537.0,0.22973]
[1765123261499,0.20663,89532.0,89531.0,0.36008]
[1765123261796,0.41326,89517.0,89514.0,0.3608]
[1765123262004,0.41326,89515.0,89514.0,0.3608]
[1765123262398,0.41326,89515.0,89514.0,0.59053]
[1765123262900,0.20663,89523.0,89522.0,0.44917]
[1765123263098,0.41326,89519.0,89514.0,0.3608]
[1765123263305,0.3608,89523.0,89522.0,0.44917]
[1765123263603,0.00016757,89524.0,89523.0,0.44917]
[1765123264597,0.3608,89541.0,89540.0,0.44917]
[1765123265600,0.3608,89550.0,89540.0,0.44917]
[1765123265807,0.00016757,89549.0,89548.0,0.44917]
[1765123267605,0.00016757,89549.0,89544.0,0.13035]
[1765123267606,0.20663,89547.0,89544.0,0.13035]
[1765123267806,0.20663,89547.0,89545.0,0.0111666]
[1765123268102,0.20663,89546.0,89545.0,0.0111666]
[1765123268303,0.20663,89546.0,89545.0,0.2408966]
[1765123269309,0.41326,89545.0,89534.0,0.3608]
[1765123269608,0.41326,89545.0,89535.0,0.0111679]
[1765123270511,0.00016757,89549.0,89540.0,0.44917]
[1765123270512,0.3608,89541.0,89540.0,0.44917]
[1765123271205,0.56743,89541.0,89540.0,0.44917]
[1765123271912,0.20663,89541.0,89540.0,0.44917]
[1765123272301,0.43897083,89541.0,89540.0,0.44917]
[1765123272499,0.79977083,89541.0,89540.0,0.44917]
[1765123272703,0.02571083,89541.0,89540.0,0.4603372]
[1765123273108,0.37921083,89541.0,89540.0,0.44917]
[1765123273306,0.37921083,89541.0,89540.0,0.22973]
[1765123273798,0.37921083,89541.0,89540.0,0.001]
[1765123274400,0.37921083,89541.0,89540.0,0.21781]
[1765123274604,0.37921083,89541.0,89540.0,0.21681]
[1765123274806,0.20246083,89541.0,89540.0,0.43607]
[1765123275208,0.02571083,89541.0,89540.0,0.43607]
[1765123276614,0.00016757,89549.0,89548.0,0.43607]
[1765123276909,0.02559206,89549.0,89548.0,0.78607]
[1765123277103,0.52899913,89566.0,89565.0,0.43607]
[1765123277312,0.36107913,89566.0,89565.0,0.43607]
[1765123278914,0.76575913,89566.0,89565.0,0.43607]
[1765123280206,0.20234,89558.0,89557.0,0.21697748]
[1765123280417,0.36107913,89566.0,89557.0,0.43623748]
[1765123280709,0.76575913,89566.0,89565.0,0.001]
[1765123281307,0.40468,89558.0,89557.0,0.00016748]
[1765123281501,0.40468,89546.0,89545.0,0.01101535]
[1765123281709,0.40468,89540.0,89527.0,0.3608]
[1765123282015,0.3608,89539.0,89527.0,0.3608]
[1765123282205,0.3608,89539.0,89538.0,0.43607]
[1765123282405,0.76548,89539.0,89538.0,0.43607]
[1765123283916,0.56314,89539.0,89538.0,0.43607]
[1765123284316,0.3608,89539.0,89538.0,0.43607]
[1765123284815,0.3608,89539.0,89538.0,0.43807]
[1765123285014,0.36096748,89547.0,89538.0,0.43807]
[1765123285217,0.36096748,89547.0,89546.0,0.21681]
[1765123285405,0.56330748,89547.0,89546.0,0.21681]
[1765123285605,0.76564748,89547.0,89546.0,0.21681]
[1765123286006,0.40468,89545.0,89544.0,0.12999]
[1765123286213,0.40468,89545.0,89544.0,0.56606]
[1765123286912,0.40468,89539.0,89538.0,0.21881]
[1765123287111,0.76548,89539.0,89538.0,0.21881]
[1765123287312,0.3608,89539.0,89538.0,0.43807]
[1765123287616,0.3608,89539.0,89538.0,0.43607]
[1765123288717,0.3608,89539.0,89538.0,0.43807]
[1765123288918,0.76548,89539.0,89538.0,0.002]
[1765123289118,0.79078349,89539.0,89538.0,0.002]
[1765123289914,0.40468,89531.0,89530.0,0.00016748]
[1765123290119,0.79078349,89531.0,89530.0,0.00016748]
[1765123290517,0.40468,89521.0,89520.0,0.12999]
[1765123290710,0.42998349,89521.0,89520.0,0.12999]
[1765123291016,0.42998349,89521.0,89510.0,0.3608]
[1765123291314,0.02530349,89520.0,89519.0,0.21681]
[1765123291622,0.56314,89522.0,89521.0,0.21681]
[1765123291820,0.58845375,89522.0,89521.0,0.21681]
[1765123292319,0.79079375,89522.0,89521.0,0.21681]
[1765123292718,0.79079375,89522.0,89511.0,0.00016748]
[1765123292719,0.40468,89512.0,89511.0,0.00016748]
[1765123293016,0.79079375,89512.0,89511.0,0.00016748]
[1765123293215,0.20234,89492.0,89491.0,0.57761]
[1765123293415,0.02531377,89492.0,89491.0,0.43607]
[1765123294129,0.3608,89503.0,89488.0,0.3608]
[1765123294130,0.00016757,89500.0,89496.0,0.12999]
[1765123294309,0.00016757,89500.0,89499.0,0.43607]
[1765123294512,0.20250757,89500.0,89499.0,0.43607]
[1765123294708,0.4301494,89500.0,89499.0,0.43607]
[1765123295817,0.40468,89492.0,89491.0,0.43707]
[1765123296123,0.22764183,89492.0,89491.0,0.43707]
[1765123296327,0.02530183,89492.0,89491.0,0.43707]
[1765123296625,0.3608,89494.0,89493.0,0.43607]
[1765123296819,0.02552078,89494.0,89493.0,0.43607]
[1765123297216,0.00016757,89500.0,89499.0,0.43607]
[1765123297524,0.00016757,89500.0,89499.0,0.79687]
[1765123298026,0.655,89522.0,89499.0,0.3608]
[1765123298230,0.02550599,89521.0,89501.0,0.0111721]
[1765123298421,0.3608,89514.0,89501.0,0.0111721]
[1765123298621,0.3608,89505.0,89504.0,0.43607]
[1765123298926,0.02550599,89505.0,89504.0,0.43607]
[1765123299123,0.00016757,89513.0,89504.0,0.43607]
[1765123299328,0.00016757,89513.0,89512.0,0.43607]
[1765123299518,0.43034771,89513.0,89512.0,0.43607]
[1765123299723,0.20234,89509.0,89508.0,0.56606]
[1765123299925,0.43018014,89509.0,89508.0,0.56606]
[1765123300829,0.22784014,89509.0,89508.0,0.56606]
[1765123301219,0.22784014,89509.0,89496.0,0.13015757]
[1765123301220,0.02550014,89509.0,89496.0,0.13015757]
[1765123301414,0.3608,89503.0,89502.0,0.43607]
[1765123301633,0.38630014,89503.0,89502.0,0.43607]
[1765123301924,0.001,89509.0,89502.0,0.43607]
[1765123301925,0.001,89509.0,89508.0,0.54447]
[1765123302127,0.02565768,89513.0,89512.0,0.39624]
[1765123302330,0.02565402,89513.0,89512.0,0.39624]
[1765123302527,0.02565402,89513.0,89508.0,0.1357512]
[1765123302528,0.2892,89509.0,89508.0,0.31774]
[1765123302822,0.2892,89509.0,89496.0,0.13115757]
[1765123302823,0.31468645,89509.0,89502.0,0.011172]
[1765123303026,0.1446,89503.0,89502.0,0.407412]
[1765123303428,0.00016757,89513.0,89502.0,0.407412]
[1765123303620,0.02548429,89512.0,89507.0,0.0111713]
[1765123303820,0.001,89509.0,89508.0,0.39624]
[1765123304025,0.2892,89503.0,89502.0,0.204332]
[1765123304244,0.65,89503.0,89502.0,0.407412]
[1765123304424,0.65,89503.0,89502.0,0.41370676]
[1765123304626,0.65,89503.0,89502.0,0.41470676]
[1765123305222,0.65,89503.0,89502.0,0.41370676]
[1765123305723,0.28936757,89513.0,89512.0,0.19316]
[1765123305923,0.17017187,89513.0,89512.0,0.39624]
[1765123306120,0.02557187,89513.0,89512.0,0.39624]
[1765123306437,0.2892,89508.0,89507.0,0.52082]
[1765123306730,0.14476757,89513.0,89512.0,0.39624]
[1765123306935,0.17016947,89513.0,89512.0,0.41470612]
[1765123307232,0.02556947,89513.0,89512.0,0.41470606]
[1765123307529,0.5054,89532.0,89531.0,0.39624]
[1765123307725,0.38620541,89532.0,89531.0,0.39624]
[1765123307927,0.38620541,89532.0,89531.0,0.41370281]
[1765123308727,0.38820541,89532.0,89531.0,0.41370281]
[1765123310436,0.53080541,89532.0,89531.0,0.41370281]
[1765123310933,0.67540541,89532.0,89531.0,0.41370281]
[1765123311139,0.67640541,89532.0,89531.0,0.01746281]
[1765123311830,0.67540541,89532.0,89531.0,0.01746281]
[1765123312040,0.3003692,89524.0,89523.0,0.00016757]
[1765123312244,0.68657461,89524.0,89523.0,0.00016757]
[1765123312938,0.38620541,89524.0,89523.0,0.40757697]
[1765123313125,0.02540541,89524.0,89523.0,0.40757697]
[1765123313325,0.5054,89528.0,89527.0,0.4074089]
[1765123313628,0.2892,89524.0,89523.0,0.00016757]
[1765123313925,0.0111694,89523.0,89511.0,0.39624]
[1765123314126,0.3608,89519.0,89515.0,0.39624]
[1765123314341,0.02546304,89518.0,89517.0,0.39624]
[1765123314535,0.2892,89510.0,89509.0,0.19316]
[1765123314834,0.31466304,89510.0,89509.0,0.19316]
[1765123315531,0.2892,89509.0,89508.0,0.52082]
[1765123315731,0.02546304,89509.0,89508.0,0.52082]
[1765123316726,0.31466304,89509.0,89508.0,0.52082]
[1765123316934,0.31466304,89509.0,89508.0,0.31774]
[1765123317132,0.31466304,89509.0,89501.0,0.00016757]
[1765123317331,0.23694,89502.0,89501.0,0.00016757]
[1765123317534,0.23694,89502.0,89501.0,0.37412757]
[1765123317729,0.23694,89502.0,89481.0,0.3608]
[1765123317730,0.2481135,89490.0,89481.0,0.3608]
[1765123318044,0.0253714,89490.0,89489.0,0.3741]
[1765123320330,0.0253714,89490.0,89489.0,0.3761]
[1765123321744,0.00016757,89498.0,89489.0,0.3761]
[1765123321745,0.00016757,89498.0,89497.0,0.37396]
[1765123321933,0.3608,89522.0,89512.0,0.37396]
[1765123321934,0.3608,89513.0,89512.0,0.37396]
[1765123322138,0.3608,89517.0,89516.0,0.37396]
[1765123322643,0.94928994,89528.0,89527.0,0.37396]
[1765123322644,0.3608,89528.0,89527.0,0.37396]
[1765123323235,0.23694,89520.0,89519.0,0.00016757]
[1765123323545,0.23694,89520.0,89495.0,0.0111729]
[1765123323546,0.0111708,89512.0,89495.0,0.0111729]
[1765123323743,0.3608,89503.0,89502.0,0.37396]
[1765123324946,0.59774,89503.0,89502.0,0.19229]
[1765123327250,0.23694,89490.0,89489.0,0.00014]
[1765123327441,0.23694,89490.0,89489.0,0.19243]
[1765123327639,0.59774,89490.0,89489.0,0.19243]
[1765123327842,0.59774,89490.0,89489.0,0.00014]
[1765123328340,0.23694,89487.0,89479.0,0.11321]
[1765123328741,0.47927,89490.0,89489.0,0.37396]
[1765123329150,0.3608,89490.0,89489.0,0.37396]
[1765123329350,0.36091189,89490.0,89489.0,0.37596]
[1765123329853,0.00011189,89490.0,89489.0,0.37596]
[1765123330150,0.00011189,89490.0,89489.0,0.3871336]